Cogmind - Beta 16 @@@ ROGUE MODE // 2025.10.30 @ 04:17:49 Player: NootNoot Result: Destroyed by S-10 Pest with Light Assault Rifle Performance ------------- Evolutions (0) 0 Regions Visited (3) 600 Robots Destroyed (16) 80 Value Destroyed (311) 311 Prototype IDs (0) 0 Alien Tech Used (0) 0 Bonus (0) 0 TOTAL SCORE: 991 Bonus ------- None Cogmind --------- Core Integrity 0/250 Matter 217/300 Energy 314/315 System Corruption 0% Temperature Cool (0) Movement Walking (200) Ox1 Location -10/Subcaves Parts ------- > --- POWER (1) -------- Neutrino Core > --- PROPULSION (2) --- Carbon-fiber Leg Makeshift Leg > --- UTILITY (2) ------ Heat Sink Large Storage Unit > --- WEAPON (2) ------- Subdweller Laser Assault Rifle > --- INVENTORY (15) --- Subdweller Power Source Subdweller Monowheel Flight Unit Heat Sink High-capacity Matter Pod (200) High-capacity Matter Pod (129) Tractor Beam Subdweller Beam Cannon Battle Rifle Subdweller Shrapnel Launcher Flamer Flamer Peak State ------------ > --- POWER ------------ Neutrino Core > --- PROPULSION ------- Carbon-fiber Leg Makeshift Leg > --- UTILITY ---------- Heat Sink Large Storage Unit > --- WEAPON ----------- Subdweller Laser Assault Rifle > --- INVENTORY -------- Subdweller Power Source Subdweller Monowheel Subdweller Monowheel Flight Unit Heat Sink High-capacity Matter Pod High-capacity Matter Pod Tractor Beam Subdweller Shrapnel Launcher Flamer Flamer [Rating: 19] Favorites ----------- Power Neutrino Core Engine Ion Engine Power Core Neutrino Core Propulsion Subdweller Monowheel Leg Makeshift Leg Wheel Subdweller Monowheel Utility Large Storage Unit Device Heat Sink Storage Large Storage Unit Weapon Assault Rifle Energy Gun Subdweller Laser Energy Cannon Subdweller Beam Cannon Ballistic Gun Assault Rifle Ballistic Cannon Light Cannon Launcher Grenade Launcher Special Weapon Flamer Build | -11 -10 -10 -10 ------- Run | Yrd Mat Min Sub Slots Evolved . | . . . . Power . | . . . . Propulsion . | . . . . Utility . | . . . . Weapon . | . . . . Parts Attached 21 | 7 4 . 10 Power 3 | 2 . . 1 Engine 2 | 2 . . . Core 1 | . . . 1 Reactor . | . . . . Propulsion 6 | 2 . . 4 Treads . | . . . . Leg 2 | . . . 2 Wheel 4 | 2 . . 2 Hover . | . . . . Flight . | . . . . Utility 4 | 1 1 . 2 Device 3 | 1 . . 2 Storage 1 | . 1 . . Processor . | . . . . Hackware . | . . . . Protection . | . . . . Artifact . | . . . . Weapon 8 | 2 3 . 3 Energy Gun 2 | 1 . . 1 Energy Cannon 1 | . . . 1 Ballistic Gun 2 | 1 1 . . Ballistic Cannon 1 | . 1 . . Launcher 1 | . 1 . . Special Weapon 1 | . . . 1 Impact Weapon . | . . . . Slashing Weapon . | . . . . Piercing Weapon . | . . . . Special Melee Weapon . | . . . . Unidentified Prototypes . | . . . . Parts Lost 4 | . 1 . 3 Power 1 | . . . 1 Propulsion . | . . . . Utility . | . . . . Weapon 3 | . 1 . 2 Highest Loss Streak 2 | . 1 . 2 To Critical Strikes . | . . . . Average Backups 9 | 2 5 7 11 Power . | . . . . Propulsion 2 | . . 1 3 Utility 3 | . 2 4 4 Weapon 2 | . 2 2 2 Tool/Special . | . . . . Unused Backups 11 | . . . 11 Power 2 | . . . 2 Propulsion 2 | . . . 2 Utility 3 | . . . 3 Weapon 4 | . . . 4 Tool/Special . | . . . . Average Slot Usage (%) 98 | . 98 100 97 Engine 4 | . 14 14 . Core 8 | . . . 12 Leg 6 | . . . 8 Wheel 21 | . 28 28 19 Device 14 | . 14 14 14 Storage 13 | . 13 14 14 Energy Gun 7 | . 7 . 9 Energy Cannon 1 | . . . 2 Ballistic Gun 9 | . 7 14 9 Ballistic Cannon 2 | . 4 2 2 Launcher 5 | . 8 11 3 Peak Build Rating 19 | 6 7 7 19 Average Rating 12 | 1 6 7 16 On Entrance 5 | . 6 7 7 Avg Prop Armor Cover (%) . | . . . . Naked Turns . | . . . . Heaviest Build 47 | 10 31 31 47 Greatest Support 40 | 20 20 20 40 Greatest Overweight (x) 1 | . 1 1 1 Average Overweight (x) . | . . 1 . Largest Inventory Capacity 15 | 5 15 15 15 Average Capacity 14 | 5 14 15 15 Most Carried 14 | 5 7 7 14 Average Carried 9 | 2 5 7 11 Final Capacity 15 | 5 15 15 15 Final Carried 12 | 2 7 7 12 Class Distribution -------------------- 58% | Scavenger-Mutant 41% | Mutant Dominant Class ---------------- Mutant | -10/Materials Mutant | -10/Mines Scavenger-Mutant | -10/Subcaves Resources | -11 -10 -10 -10 ----------- Run | Yrd Mat Min Sub Matter Collected 1011 | 256 23 53 679 Remotely 115 | . . . 115 Salvage Created 253 | 34 39 101 79 Parts 19 | 2 5 9 3 Haulers Intercepted . | . . . . Recyclers Shooed . | . . . . Parts Field Recycled . | . . . . Retrieved Matter . | . . . . Parts Self-Destructed 3 | . . . 3 Prevented . | . . . . Parts Restored . | . . . . Kills | -11 -10 -10 -10 ------- Run | Yrd Mat Min Sub Combat Hostiles Destroyed 14 | 1 3 8 2 Guns 1 | 1 . . . Cannons 2 | . . 1 1 AOE 11 | . 3 7 1 Classes Destroyed 5 | 1 2 1 1 Worker 1 | . . 1 . Builder 1 | . 1 . . Swarmer 9 | . 3 6 . Grunt 3 | 1 . 2 . Subdweller 2 | . . . 2 Best Kill Streak 4 | 1 4 4 1 Combat Bots Only 3 | 1 3 3 1 Max Kills in Single Turn 3 | 1 3 3 1 Gunslinging . | . . . . Exploded 2 | . 2 2 1 Melee . | . . . . Uniques/NPCs Destroyed . | . . . . Combat | -11 -10 -10 -10 -------- Run | Yrd Mat Min Sub Hostile Shots Fired 76 | 3 9 10 54 Missed 22 | . 3 3 16 Hits 54 | 3 6 7 38 Projectile 54 | 3 6 7 38 AOE 2 | . . . 2 Damage Taken 864 | 30 81 64 689 Core 252 | 20 16 17 199 Absorbed by Shields . | . . . . Core Remaining (%) 92 | 92 . . . Volleys Fired 59 | 2 2 6 49 Largest 2 | 2 2 2 2 Hottest 160 | 60 50 50 160 Shots Fired 107 | 4 4 12 87 Gun 75 | 4 2 6 63 Cannon 16 | . . 1 15 Launcher 13 | . 2 5 6 Special 3 | . . . 3 Kinetic 48 | 2 2 7 37 Thermal 44 | . . . 44 Explosive 13 | . 2 5 6 Electromagnetic 2 | 2 . . . Robot Hit Streak 21 | 3 1 3 21 Robot Miss Streak 3 | 1 1 3 3 Penetration Max . | . . . . Secondary Targets . | . . . . Shots Hit Robots 37 | 3 2 5 27 Core Hits 23 | 2 4 11 6 Critical Kills . | . . . . Critical Parts Destroyed . | . . . . Critical Strikes 2 | . . . 2 Burn 1 | . . . 1 Blast 1 | . . . 1 Melee Attacks . | . . . . Impact . | . . . . Slashing . | . . . . Piercing . | . . . . Sneak Attacks . | . . . . Combat Hostiles . | . . . . Follow-up Attacks . | . . . . Damage Inflicted 1292 | 42 219 566 465 Guns 359 | 42 11 15 291 Cannons 74 | . . 19 55 Explosions 827 | . 208 532 87 Melee . | . . . . Ramming . | . . . . Kinetic 180 | 30 11 34 105 Thermal 405 | . . 132 273 Explosive 695 | . 208 400 87 Electromagnetic 12 | 12 . . . Impact . | . . . . Slashing . | . . . . Piercing . | . . . . Highest Corruption . | . . . . Average Corruption . | . . . . Corruption Purged . | . . . . Corruption Blocked . | . . . . Overload Shots . | . . . . Overflow Damage 22 | . . 20 2 Projectiles . | . . . . Explosions 22 | . . 20 2 Melee . | . . . . Knockbacks . | . . . . Impact . | . . . . Kinetic . | . . . . Secondary . | . . . . Self-Inflicted Damage 16 | . . . 16 Shots 1 | . . . 1 Rammed 1 | . . 1 . Targets Rammed 1 | . . 1 . Kicked . | . . . . Crushed . | . . . . Highest Temperature 6 | 6 . . . Average Temperature 6 | 6 . . . Received Heat Transfer 159 | 18 . 18 123 Siege Activations . | . . . . Martial Activations . | . . . . Shielding Activations . | . . . . Robots Disrupted . | . . . . Combat Hostiles . | . . . . Robots Corrupted . | . . . . Combat Hostiles . | . . . . Parts Fried . | . . . . Impact Corruptions . | . . . . Robots Melted . | . . . . Combat Hostiles . | . . . . Parts Melted 1 | . . . 1 Heat Transferred 850 | . . 150 700 Parts Sabotaged . | . . . . Parts Stolen . | . . . . Parts Stripped . | . . . . Power Chain Reactions . | . . . . Alert | -11 -10 -10 -10 ------- Run | Yrd Mat Min Sub Maximum Alert Level . | . . . . Low Security (%) 100 | 100 100 100 . Level 1 . | . . . . Level 2 . | . . . . Level 3 . | . . . . Level 4 . | . . . . Level 5 . | . . . . High Security . | . . . . Max Security . | . . . . Peak Influence 118 | 20 71 118 . Initial 13 | . 13 7 . Average 32 | 2 20 48 . Influence Increases 368 | 20 81 267 . Destroy 0b10 Robot/C 240 | 20 60 160 . Destroy 0b10 Robot/NC 10 | . 5 5 . Destroy Leader 40 | . 10 30 . Disable Machine 30 | . . 30 . Destroy Structure 48 | . 6 42 . Influence Decreases 368 | . 80 202 86 Entered New Map 67 | . 7 14 46 Time Decay 291 | . 73 188 30 Lost Part 10 | . . . 10 Squads Dispatched . | . . . . Investigation . | . . . . Extermination . | . . . . Reinforcement . | . . . . Assault . | . . . . Garrison . | . . . . Intercept . | . . . . Searches Triggered . | . . . . Construction Impeded . | . . . . Haulers Reinforced . | . . . . Active Scanning Responses . | . . . . Cargo Convoy Interrupts . | . . . . Stealth | -11 -10 -10 -10 --------- Run | Yrd Mat Min Sub Distress Signals 1 | . 1 . . Communications Jammed . | . . . . Distress Signals . | . . . . Times Spotted 29 | 1 5 8 15 Peak Tracking Total 5 | 1 3 3 5 Tactical Retreats . | . . . . Traps | -11 -10 -10 -10 ------- Run | Yrd Mat Min Sub Traps Triggered 1 | . 1 . . Indirectly . | . . . . Trap Hack Attempts . | . . . . Triggered . | . . . . Disarmed . | . . . . Reprogrammed . | . . . . Reused . | . . . . Traps Extracted . | . . . . Installed . | . . . . Triggered . | . . . . Machines | -11 -10 -10 -10 ---------- Run | Yrd Mat Min Sub Machines Disabled 2 | . . 2 . Max in Single Turn 2 | . . 2 . Machines Repaired . | . . . . Machines Dismantled . | . . . . Machines Sabotaged . | . . . . Overloaded Fab Kills . | . . . . Hacking | -11 -10 -10 -10 --------- Run | Yrd Mat Min Sub Machines Accessed . | . . . . Terminals . | . . . . Fabricators . | . . . . Repair Stations . | . . . . Recycling Units . | . . . . Scanalyzers . | . . . . Garrison Access . | . . . . Total Hacks . | . . . . Successful . | . . . . Failed . | . . . . Catastrophic . | . . . . Database Lockouts . | . . . . Manual . | . . . . Terminals . | . . . . Fabricators . | . . . . Repair Stations . | . . . . Recycling Units . | . . . . Scanalyzers . | . . . . Garrison Access . | . . . . Terminal Hacks . | . . . . Fabricator Hacks . | . . . . Repair Station Hacks . | . . . . Recycling Unit Hacks . | . . . . Scanalyzer . | . . . . Garrison Access Hacks . | . . . . Unauthorized Hacks . | . . . . Terminals . | . . . . Fabricators . | . . . . Repair Stations . | . . . . Recycling Units . | . . . . Scanalyzers . | . . . . Garrison Access . | . . . . Data Cores Recovered . | . . . . Used . | . . . . Hacking Detections . | . . . . Full Trace Events . | . . . . Feedback Events . | . . . . Feedback Blocked . | . . . . Robot Schematics Acquired . | . . . . Robots Built . | . . . . Authchips . | . . . . Time . | . . . . Total Robot Build Rating . | . . . . Part Schematics Acquired . | . . . . Parts Built . | . . . . Authchips . | . . . . Time . | . . . . Total Part Build Rating . | . . . . Part Studies Acquired . | . . . . Parts Repaired . | . . . . Time . | . . . . Parts Recycled . | . . . . Recycled Matter . | . . . . Retrieved Matter . | . . . . Retrieved Components . | . . . . Parts Scanalyzed . | . . . . Part Schematics Acquired . | . . . . Parts Damaged . | . . . . Bothacking | -11 -10 -10 -10 ------------ Run | Yrd Mat Min Sub Used RIF Installer . | . . . . Robots Hacked . | . . . . Non-combat . | . . . . Combat . | . . . . Robot Hacks Applied . | . . . . Relay Couplers Released . | . . . . Fabnet Peak Effective % . | . . . . Robots Rewired . | . . . . Allies Hacked . | . . . . Hacks Repelled . | . . . . Allies | -11 -10 -10 -10 -------- Run | Yrd Mat Min Sub Total Allies . | . . . . Largest Group . | . . . . Highest-Rated Group . | . . . . Highest-Rated Ally . | . . . . Total Orders . | . . . . Ally Attacks . | . . . . Total Damage . | . . . . Kills . | . . . . Allies Corrupted . | . . . . Allies Melted . | . . . . Intel | -11 -10 -10 -10 ------- Run | Yrd Mat Min Sub Active Infowar (turns) 150 | . . . 150 Optics 150 | . . . 150 Robot Analysis Total . | . . . . Derelict Logs Recovered 2 | . . 2 . Drone Launches . | . . . . Drone Recoveries . | . . . . Exploration | -11 -10 -10 -10 ------------- Run | Yrd Mat Min Sub Turns Passed 2622 | 139 277 468 1738 Spaces Moved 2104 | 208 273 472 1151 Core 166 | 166 . . . Treads . | . . . . Legs 251 | . . . 251 Wheels 1687 | 42 273 472 900 Hover . | . . . . Flight . | . . . . Fastest Speed 50 | 50 80 95 95 Average Speed 112 | 56 94 95 134 Slowest Speed 200 | 80 95 95 200 Overloaded Moves . | . . . . Propulsion Burnouts . | . . . . Robots Hopped . | . . . . Potential Cave-ins . | . . . . Cave-ins Triggered . | . . . . Exploration Rate (%) 38 | 9 34 70 42 Regions Visited 3 Branch Regions 2 Pre-discovered Areas 2 | . . 1 1 Known Exits Taken . | . . . . Unknown Exits Taken 3 | 1 1 1 . Scrap Searched . | . . . . Spaces Dug 9 | . . . 9 Terrain Destroyed 100 | . 6 51 43 Melee . | . . . . Projectile 4 | . . . 4 AOE 96 | . 6 51 39 Terrain Rammed . | . . . . Walls Destroyed . | . . . . Machines Disabled . | . . . . Actions | -11 -10 -10 -10 --------- Run | Yrd Mat Min Sub Total 2250 | 225 289 480 1256 Wait 7 | 1 . . 6 Move 2101 | 207 272 471 1151 Hop . | . . . . Pick Up 33 | 8 8 . 17 Fast Attach . | . . . . Attach 19 | 6 4 1 8 Detach 8 | . 2 1 5 Swap 12 | 1 . . 11 Drop 10 | . 1 . 9 Fire 59 | 2 2 6 49 Melee . | . . . . Ram 1 | . . 1 . Kick . | . . . . Crush . | . . . . Escape Stasis . | . . . . Rewire . | . . . . Trap . | . . . . Miscellaneous . | . . . . Route ------- -11/Scrapyard -10/Materials (discovered 2 exits: [*Min x2]) -10/Mines (discovered 3 exits: [*Mat] / [*Exi] / [*Sub]) -10/Subcaves History --------- Turn | Location | Event 2 | -11/Scrapyard | Met Revision 17 112 | -11/Scrapyard | Discovered new exit (range 8) 140 | -11/Scrapyard | Entered Materials 172 | -10/Materials | Discovered new exit (range 16) 277 | -10/Materials | Discovered new exit (range 5) 311 | -10/Materials | Build established: Mutant 417 | -10/Materials | Entered Mines 439 | -10/Mines | Learned Materials interactive machine intel 564 | -10/Mines | Discovered new exit (range 10) 576 | -10/Mines | Deemed a non-threat by the Exiles lab entrance 577 | -10/Mines | Discovered new exit (range 5) 664 | -10/Mines | Discovered new exit (range 9) 729 | -10/Mines | Learned location of Recycling (-7) 885 | -10/Mines | Entered Subcaves 930 | -10/Subcaves | Learned location of Zion (-7) 930 | -10/Subcaves | Met a Zionite searching for "candidates" 945 | -10/Subcaves | Ambushed by swarm of Subdwellers 956 | -10/Subcaves | Core integrity fell below 50% 1395 | -10/Subcaves | Build established: Scavenger-Mutant 1498 | -10/Subcaves | Ambushed by Subdweller buried in earth 1501 | -10/Subcaves | Core integrity fell below 20% 2623 | -10/Subcaves | Destroyed by S-10 Pest with Light Assault Rifle Last Messages --------------- simultaneously, Sub. Monowheel automatically deactivated. 02069_ Dropped Broken Sub. Monowheel. 02160_ Subatomizers dissect the Broken Sub. Optics. 02403_ Subatomizers dissect the Disposable Heat Sink. 02418_ Acquired 47 matter. 02422_ Acquired 4 matter. 02428_ Subatomizers dissect the Disposable Heat Sink. 02476_ Acquired Battle Rifle. 02487_ Acquired Sub. Beam Cannon. 02494_ Acquired 4 matter. 02500_ Acquired 3 matter. 02504_ Acquired 5 matter. 02558_ Acquired 22 matter. 02616_ Destroyed Flight Unit. 02619_ Destroyed Lgt. Ion Engine. [Achievement: First Step to Greatness] Map ----- +----------------------------------------------------+ | ?? #???? #????????????????????????????????????? | | ?? ????# ##???????????????????????????????????? | | ??? ??? ????????????????????????????????????? | | ???? ##?# ????????????????????????????????????? | | ????# ## ????????????????????????????????????? | | ????# ########?????????????????????????????? | | ????? #?????????????????????????????? | | ?????? #?????????????????????????????? | | ???????# #?????????????????????????????? | | ????##??# ##????????????????????????????? | | ????# #### ##???????????????????????????? | | ????# ## #???????????????????????????? | | ?????# # ##??????????????????????????? | | ????## ###????????????????????????? | | ????# #! " #????????????????????????? | | ????# #### ###????????????????????????? | | ????# ##### && ##?????????????????????????? | | ????# ## ### & && "#?????????????????????????? | | ????## ### ##?????????#???????????????? | | ?????# ## ##????????? #### ?????????? | | ?????##### ## #######??? ?????????? | | ????????## ### ss ????????? | | ????????# #### s ????????? | | ????????# # #??## ????????? | | ????????## ### #???## ????????? | | ?????????## ## #????# @ ####?????????? | | ????###??## #????### ##????????????? | | ????# ### #??????? ##?????????????? | | ????# # ##??????? ####??????????????? | | ????# #???????? ##?????????????????? | | ????# #????????#####??????????????????? | | ????# "#???????????????????????????????? | | ????## #???????????????????????????????? | | ?????## #???????????????????????????????? | | ??????# #???????????????????????????????? | | ??????# #???????????????????????????????? | | #?????##" #???????????????????????????????? | | #??????#" #???????????????????????????????? | | ???????## #???????????????????????????????? | | ####????# ##???????????????????????????????? | | # ######"" " #????????????????????????????????? | | ## #" " #????????????????????????????????? | | " ] " #????????????????????????????????? | | ### ""& ""##????????????????????????????????? | | ?## #"& & #????????????????????????????????? | | ?# #& &###????????????????????????????????? | | ## # &%& & ##??????###?????????????????????#### | | #### # & & #?????## #??????????????????### | | #??#### & & ##????# ?#?##????##??????## # | | ####??#" " "" #????# #"?? #### #?????## # | +----------------------------------------------------+ Best States ------------- Heat Dissipation 35 Energy Generation 19 Energy Capacity 315 Matter Stores 300 Matter Capacity 300 Sight Range 21 Terrain Scan Density 10 Evasion (%) 50 Item Schematics ----------------- None Robot Schematics ------------------ None Fabricated ------------ Nothing Repaired ---------- Nothing Studied --------- None Alien Tech Used ----------------- None Achievements -------------- Crack Shot Do Not Disturb First Step to Greatness For Emergencies Only I Have A Map? Spot Them First Use The Force Challenges ------------ None Game ------ Seed LobotomyRocketSuperbattery Manual? 0 Play Time 00:42:44 Cumulative 0.6 hours Start 2025.10.30 @ 03:33:57 End 2025.10.30 @ 04:17:49 Sessions 1 Manual Loads 0 Difficulty Rogue Special Mode None Game No. 1 Rogue 1 Adventurer 0 Explorer 0 Win Type - Total 0 Types 0/0/0/0/0/0/0/0/0/0 Lore% 0 Gallery% 1 Achievement% 1 Wizard Run 0 Options --------- Layout 1 ASCII 0 Keyboard 0 Movement Arrows Keybinds 0 Fullscreen 1 Font 32/SmallcapsGlow Map View 50x35 Zoom Use 0% Tactical HUD 1 Map Filters NONE Filters NONE Steam 1 RUN: 3b49218f-55e8-4b8b-9822-23a23247a0de